fUSD/lending_fUSD_20251213
["ID","MTS","AMOUNT","RATE_DAILY","PERIOD"]
[398413656,1765622369740,-200.0,0.00042405,30]
[398413657,1765622369769,-300.07210862,0.00042405,30]
[398413658,1765622369798,-200.0,0.00042405,30]
[398413659,1765622369828,-200.0,0.00042405,30]
[398413660,1765622369857,-200.0,0.00042405,30]
[398413661,1765622369887,-200.0,0.00042405,30]
[398413662,1765622369916,-200.0,0.00042405,30]
[398413663,1765622369945,-200.0,0.00042405,30]
[398413664,1765622369975,-200.0,0.00042405,30]
[398413665,1765622370003,-200.0,0.00042405,30]
[398413666,1765622370032,-200.0,0.00042405,30]
[398413667,1765622370062,-1083.57448031,0.00042405,120]
[398413668,1765622370092,-8000.0,0.00042405,60]
[398413669,1765622370122,-2000.0,0.00042405,120]
[398413670,1765622370151,-2000.0,0.00042405,120]
[398413671,1765622370180,-302.0,0.00042405,120]
[398413672,1765622370209,-312.0,0.00042405,120]
[398413673,1765622370238,-2900.81423081,0.00042405,120]
[398413674,1765622370268,-13031.47973948,0.00042405,120]
[398413675,1765622370297,-633.0,0.00042405,120]
[398413676,1765622370327,-1000.0,0.00042405,60]
[398413677,1765622370357,-1000.0,0.00042405,30]
[398413678,1765622370387,-1000.0,0.00042405,30]
[398413679,1765622370418,-1000.0,0.00042405,30]
[398413680,1765622370448,-1000.0,0.00042405,120]
[398413681,1765622370478,-1000.0,0.00042405,30]
[398413682,1765622370508,-1000.0,0.00042405,30]
[398413683,1765622370538,-1000.0,0.00042405,30]
[398413684,1765622370567,-1000.0,0.00042405,120]
[398413685,1765622370598,-1000.0,0.00042405,60]
[398413686,1765622370632,-1000.0,0.00042405,120]
[398413687,1765622370672,-1000.0,0.00042405,30]
[398413688,1765622370705,-1000.0,0.00042405,30]
[398413689,1765622370742,-1000.0,0.00042405,30]
[398413690,1765622370771,-1000.0,0.00042405,30]
[398413691,1765622370800,-1000.0,0.00042405,30]
[398413692,1765622370832,-1000.0,0.00042405,30]
[398413693,1765622370861,-1000.0,0.00042405,60]
[398413694,1765622370891,-1000.0,0.00042405,60]
[398413695,1765622370920,-1000.0,0.00042405,30]
[398413696,1765622370949,-1000.0,0.00042405,30]
[398413697,1765622370979,-1000.0,0.00042405,60]
[398413698,1765622371008,-1000.0,0.00042405,30]
[398413699,1765622371038,-1000.0,0.00042405,60]
[398413700,1765622371067,-1000.0,0.00042405,60]
[398413701,1765622371095,-1000.0,0.00042405,60]
[398413702,1765622371124,-1000.0,0.00042405,30]
[398413703,1765622371152,-1000.0,0.00042405,30]
[398413704,1765622371181,-1000.0,0.00042405,60]
[398413705,1765622371211,-190.57895235,0.00042405,120]
[398413706,1765622371239,-77694.12179716,0.00042405,60]
[398413707,1765622371267,-3402.88026824,0.00042405,30]
[398413708,1765622371296,-786470.68934105,0.00042405,30]
[398413709,1765622378674,-4000000.0,0.00042405,30]
[398413710,1765622393531,-4000000.0,0.00042405,30]
[398413711,1765622403492,-6000000.0,0.00042405,30]
[398413712,1765622410086,-725101.05028555,0.00042405,30]
[398413713,1765622410116,-3254.5,0.00042405,120]
[398413714,1765622410144,-1104178.53826685,0.00042405,30]
[398413715,1765622410172,-217676.88071294,0.00042405,30]
[398413716,1765622410200,-271828.58775628,0.00042405,30]
[398413717,1765622410228,-204079.67866511,0.00042405,30]
[398413718,1765622410256,-37501.87912799,0.00042405,30]
[398413719,1765622410285,-154.12477279,0.00042405,120]
[398413720,1765622410312,-16317.90880784,0.00042405,30]
[398413721,1765622410339,-156319.57717834,0.00042405,30]
[398413722,1765622410367,-10923.10859097,0.00042405,30]
[398413723,1765622410397,-8746.05815132,0.00042405,30]
[398413724,1765622410424,-107355.89481206,0.00042405,30]
[398413725,1765622410451,-66438.64811424,0.00042405,30]
[398413726,1765622410478,-3310.7672688,0.00042405,30]
[398413727,1765622410505,-56796.70949484,0.00042405,30]
[398413728,1765622410532,-1830.53031126,0.00042405,30]
[398413729,1765622410560,-514.27474642,0.00042405,30]
[398413730,1765622410588,-3342.27,0.00042405,30]
[398413731,1765622410614,-19305.3488428,0.00042405,120]
[398413732,1765622410645,-500.0,0.00042405,120]
[398413733,1765622410676,-500.0,0.00042405,120]
[398413734,1765622410703,-500.0,0.00042405,120]
[398413735,1765622410730,-500.0,0.00042405,120]
[398413736,1765622410758,-547.64,0.00042405,120]
[398413737,1765622410785,-68426.74120646,0.00042405,120]
[398413738,1765622410812,-7900.0,0.00042405,120]
[398413739,1765622410839,-601.37271155,0.00042405,30]
[398413740,1765622410865,-294841.9485475,0.00042405,120]
[398413741,1765622410896,-239.78340415,0.00042405,30]
[398413742,1765622410922,-24950.0,0.00042405,59]
[398413743,1765622410948,-31817.31375642,0.00042405,30]
[398413744,1765622410978,-21452.35878827,0.00042405,120]
[398413745,1765622411006,-20419.02651212,0.00042405,120]
[398413746,1765622411035,-2066.0,0.00042405,120]
[398413747,1765622411064,-12637.77,0.00042405,30]
[398413748,1765622411092,-1271.38722035,0.00042405,30]
[398413749,1765622411122,-1283.39729,0.00042405,60]
[398413750,1765622411151,-1283.39729,0.00042405,60]
[398413751,1765622411179,-1283.39729,0.00042405,60]
[398413752,1765622411210,-1283.39729,0.00042405,60]
[398413753,1765622411238,-1283.39729,0.00042405,60]
[398413754,1765622411267,-915.22237048,0.00042405,120]
[398413755,1765622411296,-3200.0,0.00042405,120]
[398413756,1765622411325,-2504.53069297,0.00042405,90]
[398413757,1765622411354,-13662.07491707,0.00042405,120]
[398413758,1765622411390,-2130.72407386,0.00042405,30]
[398413759,1765622411422,-2412.21681829,0.00042405,120]
[398413760,1765622411450,-1487.91642652,0.00042405,30]
[398413761,1765622411479,-2676.34487691,0.00042405,120]
[398413762,1765622411506,-11557.98083777,0.00042405,120]
[398413763,1765622411535,-2063.94319091,0.00042405,30]
[398413764,1765622411564,-2919.97335888,0.00042405,120]
[398413765,1765622411593,-2212.67530603,0.00042405,120]
[398413766,1765622411621,-1824.95174941,0.00042405,30]
[398413767,1765622412118,-4349.2206997,0.00042405,120]
[398413768,1765622412148,-1513.16226282,0.00042405,120]
[398413769,1765622412177,-1401.60131411,0.00042405,120]
[398413770,1765622412208,-1632.58116003,0.00042405,120]
[398413771,1765622412240,-6971.53887194,0.00042405,120]
[398413772,1765622412267,-56387.91261002,0.00042405,30]
[398413773,1765622412296,-2287.53757578,0.00042405,120]
[398413774,1765622412326,-5447.31555277,0.00042405,120]
[398413775,1765622412354,-2314.54860501,0.00042405,120]
[398413776,1765622412383,-2721.82913933,0.00042405,120]
[398413777,1765622412411,-3306.99546418,0.00042405,80]
[398413778,1765622412438,-6949.66740427,0.00042405,120]
[398413779,1765622412470,-1684.14405353,0.00042405,30]
[398413780,1765622412498,-4447.76622865,0.00042405,60]
[398413781,1765622412529,-1926.92938598,0.00042405,30]
[398413782,1765622412576,-1880.03186931,0.00042405,30]
[398413783,1765622412604,-1913.67586574,0.00042405,120]
[398413784,1765622412643,-3401.51830732,0.00042405,120]
[398413785,1765622412670,-4968.4037717,0.00042405,120]
[398413786,1765622412705,-1563.98740606,0.00042405,30]
[398413787,1765622412735,-8921.29303919,0.00042405,30]
[398413788,1765622412765,-6562.89111225,0.00042405,120]
[398413789,1765622412792,-1393.86746776,0.00042405,30]
[398413790,1765622412818,-6007.00043807,0.00042405,120]
[398413791,1765622412845,-4342.52773036,0.00042405,120]
[398413792,1765622412875,-2086.50888077,0.00042405,52]
[398413793,1765622412922,-2074.11884937,0.00042405,30]
[398413794,1765622412959,-3037.95310084,0.00042405,120]
[398413795,1765622412987,-1196.28666213,0.00042405,120]
[398413796,1765622413025,-34082.53484245,0.00042405,30]
[398413797,1765622413058,-1497.93364763,0.00042405,30]
[398413798,1765622413089,-2684.91309949,0.00042405,30]
[398413799,1765622413117,-2057.1454986,0.00042405,90]
[398413800,1765622413145,-2110.75458892,0.00042405,120]
[398413801,1765622413175,-4606.1900805,0.00042405,30]
[398413802,1765622413204,-50000.0,0.00042405,33]
[398413803,1765622413232,-159.0,0.00042405,30]
[398413804,1765622413260,-1246.98,0.00042405,120]
[398413805,1765622413291,-217.02,0.00042405,30]
[398413806,1765622413323,-81163.0,0.00042405,120]
[398413807,1765622413350,-1420.88975789,0.00042405,120]
[398413808,1765622413377,-143863.0,0.00042405,120]
[398413809,1765622413405,-45000.0,0.00042405,30]
[398413810,1765622413432,-61545.848,0.00042405,30]
[398413811,1765622413460,-40712.16960576,0.00042405,30]
[398413812,1765622413488,-2474.21246353,0.00042405,31]
[398413813,1765622413534,-43779.27,0.00042405,90]
[398413814,1765622413574,-1874.66025336,0.00042405,30]
[398413815,1765622413607,-517.96467305,0.00042405,120]
[398413816,1765622413637,-28946.41858582,0.00042405,120]
[398413817,1765622413681,-282070.45289777,0.00042405,30]
[398413818,1765622413710,-205514.2371002,0.00042405,30]
[398413819,1765622413738,-2470.40347677,0.00042405,60]
[398413820,1765622413765,-400.0,0.00042405,30]
[398413821,1765622413793,-400.0,0.00042405,30]
[398413822,1765622413831,-400.0,0.00042405,30]
[398413823,1765622413864,-400.0,0.00042405,30]
[398413824,1765622413893,-400.0,0.00042405,30]
[398413825,1765622413923,-400.0,0.00042405,30]
[398413826,1765622413952,-400.0,0.00042405,30]
[398413827,1765622413981,-400.0,0.00042405,30]
[398413828,1765622414009,-400.0,0.00042405,30]
[398413829,1765622414039,-400.0,0.00042405,30]
[398413830,1765622414068,-378.13253763,0.00042405,30]
[398413831,1765622414097,-5100.0,0.00042405,35]
[398413832,1765622414124,-1518.94,0.00042405,120]
[398413833,1765622414150,-482.02,0.00042405,30]
[398413834,1765622414179,-2210.4611,0.00042405,120]
[398413835,1765622414207,-269.0,0.00042405,120]
[398413836,1765622414238,-4000.0,0.00042405,31]
[398413837,1765622414272,-1000.0,0.00042405,120]
[398413838,1765622414308,-192.37572714,0.00042405,30]
[398413839,1765622414338,-214.15076,0.00042405,60]
[398413840,1765622414368,-279.61921656,0.00042405,120]
[398413841,1765622414401,-152.933097,0.00042405,120]
[398413842,1765622414431,-160.93306908,0.00042405,30]
[398413843,1765622414460,-167.40504023,0.00042405,30]
[398413844,1765622414488,-20438.13135708,0.00042405,30]
[398413845,1765622414516,-2005.08777859,0.00042405,120]
[398413846,1765622414544,-223.92319074,0.00042405,30]
[398413847,1765622414572,-250.06626493,0.00042405,120]
[398413848,1765622414600,-400.2264866,0.00042405,30]
[398413849,1765622414627,-500.0,0.00042405,30]
[398413850,1765622414656,-500.0,0.00042405,30]
[398413851,1765622414685,-3000.0,0.00042405,30]
[398413852,1765622414716,-3000.0,0.00042405,30]
[398413853,1765622414751,-3000.0,0.00042405,30]
[398413854,1765622414781,-3000.0,0.00042405,30]
[398413855,1765622414811,-3000.0,0.00042405,30]
[398413856,1765622414841,-3000.0,0.00042405,30]
[398413857,1765622414870,-3000.0,0.00042405,30]
[398413858,1765622414900,-3000.0,0.00042405,30]
[398413859,1765622414930,-3000.0,0.00042405,30]
[398413860,1765622414961,-969.0,0.00042405,30]
[398413861,1765622414990,-3000.0,0.00042405,120]
[398413862,1765622415436,-3000.0,0.00042405,120]
[398413863,1765622415465,-3000.0,0.00042405,120]
[398413864,1765622415492,-3000.0,0.00042405,120]
[398413865,1765622415519,-3000.0,0.00042405,120]
[398413866,1765622415547,-3000.0,0.00042405,120]
[398413867,1765622415575,-3000.0,0.00042405,120]
[398413868,1765622415603,-3000.0,0.00042405,120]
[398413869,1765622415634,-3000.0,0.00042405,120]
[398413870,1765622415661,-969.0,0.00042405,120]
[398413871,1765622415691,-198.83055042,0.00042405,30]
[398413872,1765622415720,-310.0,0.00042405,120]
[398413873,1765622415746,-297.05441526,0.00042405,30]
[398413874,1765622415772,-195.48998699,0.00042405,60]
[398413875,1765622415799,-211.62001823,0.00042405,120]
[398413876,1765622415826,-198.36366921,0.00042405,30]
[398413877,1765622415854,-2000.0,0.00042405,30]
[398413878,1765622415882,-2000.0,0.00042405,60]
[398413879,1765622415910,-2000.0,0.00042405,90]
[398413880,1765622415939,-849.99567429,0.00042405,120]
[398413881,1765622415968,-2500.0,0.00042405,120]
[398413882,1765622415997,-3945.22818352,0.00042405,30]
[398413883,1765622416027,-152.76861279,0.00042405,60]
[398413884,1765622416055,-858.552661,0.00042405,120]
[398413885,1765622416083,-466.88705693,0.00042405,120]
[398413886,1765622416113,-174.0,0.00042405,120]
[398413887,1765622416142,-167.4106806,0.00042405,120]
[398413888,1765622416172,-1039.167,0.00042405,120]
[398413889,1765622416201,-2238.0,0.00042405,30]
[398413890,1765622416230,-1067.97917613,0.00042405,120]
[398413891,1765622416259,-277.98,0.00042405,120]
[398413892,1765622416288,-4097.0,0.00042405,120]
[398413893,1765622416318,-661781.63944237,0.00042405,30]
[398413894,1765622416346,-1166.91954421,0.00042405,120]
[398413895,1765622416375,-2750.79000391,0.00042405,30]
[398413896,1765622416403,-4499.999999,0.00042405,120]
[398413897,1765622416431,-3690.0,0.00042405,120]
[398413898,1765622416460,-6373.3071395,0.00042405,30]
[398413899,1765622416488,-17282.11972097,0.00042405,60]
[398413900,1765622416515,-46689.89770843,0.00042405,30]
[398413901,1765622416542,-5038.0,0.00042405,60]
[398413902,1765622416569,-230611.10362207,0.00042405,30]
[398413903,1765622416596,-141647.45698554,0.00042405,30]
[398413904,1765622460095,334.3,0.00013699,2]
[398413905,1765622461597,178.13,8.019e-05,2]
[398413906,1765622461802,178.13,0.00010024,2]
[398413907,1765622463299,178.13,0.00012029,2]
[398413908,1765622463385,178.13,0.00014034,2]
[398413912,1765622544835,500.0,0.000175,30]
[398413913,1765622544890,500.0,0.000175,30]
[398413914,1765622545191,500.0,0.000175,30]
[398413915,1765622545265,505.16857169,0.00017,30]
[398413916,1765622545506,503.93629165,0.00017,30]
[398413917,1765622545964,500.0,0.000175,30]
[398413918,1765622546080,500.0,0.000175,30]
[398413919,1765622546400,500.0,0.000175,30]
[398413920,1765622546744,500.0,0.000175,30]
[398413921,1765622547030,419.551282,0.000175,30]
[398413922,1765622547743,500.0,0.000175,30]
[398413923,1765622548099,500.0,0.000175,30]
[398413924,1765622548468,500.0,0.000175,30]
[398413925,1765622548876,500.0,0.000175,30]
[398413926,1765622549194,500.0,0.000175,30]
[398413927,1765622549541,500.0,0.000175,30]
[398413928,1765622549865,500.0,0.00017,30]
[398413929,1765622550627,500.0,0.00017,30]
[398413930,1765622550724,500.0,0.00017,30]
[398413931,1765622550946,500.0,0.00017,30]
[398413932,1765622551295,500.0,0.00017,30]
[398413933,1765622551642,500.0,0.00017,30]
[398413934,1765622551961,500.0,0.00017,30]
[398413935,1765622552335,500.0,0.00017,30]
[398413936,1765622552659,500.0,0.00017,30]
[398413937,1765622554320,950.49702891,0.00017,30]
[398413938,1765622705644,166.66,0.00015108,2]
[398413939,1765622705842,166.66,0.00015426,2]
[398413940,1765622706055,166.66,0.00015744,2]
[398413941,1765622709137,-830481.10259131,0.00042405,30]
[398413942,1765622709167,-1000.0,0.00042405,120]
[398413943,1765622709197,-7250.0,0.00042405,30]
[398413944,1765622709226,-3643.67839915,0.00042405,120]
[398413945,1765622709254,-8662.858137,0.00042405,75]
[398413946,1765622709280,-156.38084245,0.00042405,120]
[398413947,1765622709307,-3137.84,0.00042405,120]
[398413948,1765622709334,-1254.24626737,0.00042405,120]
[398413949,1765622709362,-1020.7560762,0.00042405,120]
[398413950,1765622709389,-3525.34365349,0.00042405,120]
[398413951,1765622709415,-42200.0,0.00042405,60]
[398413952,1765622709443,-100000.0,0.00042405,30]
[398413953,1765622709472,-2023.99248671,0.00042405,120]
[398413954,1765622709501,-200.0,0.00042405,30]
[398413955,1765622709528,-500.0,0.00042405,120]
[398413956,1765622709555,-151.0,0.00042405,120]
[398413957,1765622709581,-151.0,0.00042405,120]
[398413958,1765622709612,-4719.24629558,0.00042405,120]
[398413959,1765622709642,-500.19792976,0.00042405,120]
[398413960,1765622709668,-151.0,0.00042405,120]
[398413961,1765622709695,-151.0,0.00042405,120]
[398413962,1765622709721,-151.0,0.00042405,120]
[398413963,1765622709748,-500.0,0.00042405,120]
[398413964,1765622709775,-500.0,0.00042405,120]
[398413965,1765622709804,-520.0,0.00042405,120]
[398413966,1765622709830,-250.0,0.00042405,120]
[398413967,1765622709861,-151.0,0.00042405,120]
[398413968,1765622709895,-250.0,0.00042405,120]
[398413969,1765622709925,-500.0,0.00042405,120]
[398413970,1765622709955,-151.0,0.00042405,120]
[398413971,1765622709986,-500.0,0.00042405,120]
[398413972,1765622710016,-500.0,0.00042405,120]
[398413973,1765622710044,-539.24,0.00042405,120]
[398413974,1765622710073,-151.0,0.00042405,120]
[398413975,1765622710102,-250.0,0.00042405,120]
[398413976,1765622710132,-250.0,0.00042405,120]
[398413977,1765622710163,-500.0,0.00042405,120]
[398413978,1765622710193,-500.0,0.00042405,120]
[398413979,1765622710220,-151.0,0.00042405,120]
[398413980,1765622710249,-500.0,0.00042405,120]
[398413981,1765622710276,-559.19188,0.00042405,120]
[398413982,1765622710303,-151.0,0.00042405,120]
[398413983,1765622710330,-250.0,0.00042405,120]
[398413984,1765622710359,-500.0,0.00042405,120]
[398413985,1765622710388,-250.0,0.00042405,120]
[398413986,1765622710417,-151.0,0.00042405,120]
[398413987,1765622710445,-500.0,0.00042405,120]
[398413988,1765622710474,-579.88197956,0.00042405,120]
[398413989,1765622710502,-500.0,0.00042405,120]
[398413990,1765622710529,-250.0,0.00042405,120]
[398413991,1765622710562,-151.0,0.00042405,120]
[398413992,1765622710592,-500.0,0.00042405,120]
[398413993,1765622710622,-250.0,0.00042405,120]
[398413994,1765622710653,-151.0,0.00042405,120]
[398413995,1765622710682,-500.0,0.00042405,120]
[398413996,1765622710709,-500.0,0.00042405,120]
[398413997,1765622710736,-151.0,0.00042405,120]
[398413998,1765622710762,-601.3376128,0.00042405,120]
[398413999,1765622710795,-500.0,0.00042405,120]
[398414000,1765622711202,-250.0,0.00042405,120]
[398414001,1765622711231,-151.0,0.00042405,120]
[398414002,1765622711261,-500.0,0.00042405,120]
[398414003,1765622711292,-250.0,0.00042405,120]
[398414004,1765622711323,-623.58710448,0.00042405,120]
[398414005,1765622711355,-500.0,0.00042405,120]
[398414006,1765622711383,-151.0,0.00042405,120]
[398414007,1765622711411,-500.0,0.00042405,120]
[398414008,1765622711439,-250.0,0.00042405,120]
[398414009,1765622711466,-151.0,0.00042405,120]
[398414010,1765622711494,-500.0,0.00042405,120]
[398414011,1765622711521,-250.0,0.00042405,120]
[398414012,1765622711549,-151.0,0.00042405,120]
[398414013,1765622711579,-500.0,0.00042405,120]
[398414014,1765622711610,-500.0,0.00042405,120]
[398414015,1765622711639,-250.0,0.00042405,120]
[398414016,1765622711668,-646.65982734,0.00042405,120]
[398414017,1765622711697,-151.0,0.00042405,120]
[398414018,1765622711727,-250.0,0.00042405,120]
[398414019,1765622711759,-500.0,0.00042405,120]
[398414020,1765622711791,-151.0,0.00042405,120]
[398414021,1765622711818,-500.0,0.00042405,120]
[398414022,1765622711848,-250.0,0.00042405,120]
[398414023,1765622711881,-151.0,0.00042405,120]
[398414024,1765622711907,-670.58624095,0.00042405,120]
[398414025,1765622711934,-250.0,0.00042405,120]
[398414026,1765622711962,-500.0,0.00042405,120]
[398414027,1765622711991,-151.0,0.00042405,120]
[398414028,1765622712019,-500.0,0.00042405,120]
[398414029,1765622712046,-250.0,0.00042405,120]
[398414030,1765622712075,-500.0,0.00042405,120]
[398414031,1765622712104,-151.0,0.00042405,120]
[398414032,1765622712132,-160.0,0.00042405,120]
[398414033,1765622712160,-250.0,0.00042405,120]
[398414034,1765622712188,-500.0,0.00042405,120]
[398414035,1765622712216,-151.0,0.00042405,120]
[398414036,1765622712244,-151.0,0.00042405,120]
[398414037,1765622712271,-160.0,0.00042405,120]
[398414038,1765622712298,-670.58624095,0.00042405,120]
[398414039,1765622712329,-500.0,0.00042405,120]
[398414040,1765622712360,-151.0,0.00042405,120]
[398414041,1765622712392,-160.0,0.00042405,120]
[398414042,1765622712421,-151.0,0.00042405,120]
[398414043,1765622712449,-160.0,0.00042405,120]
[398414044,1765622712478,-151.0,0.00042405,120]
[398414045,1765622712506,-250.0,0.00042405,120]
[398414046,1765622712534,-500.0,0.00042405,120]
[398414047,1765622712562,-151.0,0.00042405,120]
[398414048,1765622712590,-151.0,0.00042405,120]
[398414049,1765622712617,-250.0,0.00042405,120]
[398414050,1765622712644,-500.0,0.00042405,120]
[398414051,1765622712670,-151.0,0.00042405,120]
[398414052,1765622712697,-500.0,0.00042405,120]
[398414053,1765622712724,-10000.0,0.00042405,120]
[398414054,1765622712752,-151.0,0.00042405,120]
[398414055,1765622712779,-250.0,0.00042405,120]
[398414056,1765622712809,-500.0,0.00042405,120]
[398414057,1765622712837,-500.0,0.00042405,120]
[398414058,1765622712864,-151.0,0.00042405,120]
[398414059,1765622712894,-10000.0,0.00042405,120]
[398414060,1765622712921,-151.0,0.00042405,120]
[398414061,1765622712948,-250.0,0.00042405,120]
[398414062,1765622712976,-500.0,0.00042405,120]
[398414063,1765622713003,-500.0,0.00042405,120]
[398414064,1765622713030,-151.0,0.00042405,120]
[398414065,1765622713058,-10000.0,0.00042405,120]
[398414066,1765622713085,-151.0,0.00042405,120]
[398414067,1765622713113,-250.0,0.00042405,120]
[398414068,1765622713141,-151.0,0.00042405,120]
[398414069,1765622713169,-500.0,0.00042405,120]
[398414070,1765622713197,-500.0,0.00042405,120]
[398414071,1765622713226,-10000.0,0.00042405,120]
[398414072,1765622713254,-151.0,0.00042405,120]
[398414073,1765622713281,-250.0,0.00042405,120]
[398414074,1765622713308,-500.0,0.00042405,120]
[398414075,1765622713335,-500.0,0.00042405,120]
[398414076,1765622713364,-10000.0,0.00042405,120]
[398414077,1765622713392,-151.0,0.00042405,120]
[398414078,1765622713420,-151.0,0.00042405,120]
[398414079,1765622713449,-250.0,0.00042405,120]
[398414080,1765622713477,-500.0,0.00042405,120]
[398414081,1765622713504,-500.0,0.00042405,120]
[398414082,1765622713534,-151.0,0.00042405,120]
[398414083,1765622713563,-151.0,0.00042405,120]
[398414084,1765622713592,-250.0,0.00042405,120]
[398414085,1765622713621,-500.0,0.00042405,120]
[398414086,1765622713650,-151.0,0.00042405,120]
[398414087,1765622713679,-151.0,0.00042405,120]
[398414088,1765622713708,-500.0,0.00042405,120]
[398414089,1765622713737,-250.0,0.00042405,120]
[398414090,1765622713765,-500.0,0.00042405,120]
[398414091,1765622713796,-151.0,0.00042405,120]
[398414092,1765622713825,-1000.0,0.00042405,120]
[398414093,1765622713855,-500.0,0.00042405,120]
[398414094,1765622713883,-250.0,0.00042405,120]
[398414095,1765622714172,-1000.0,0.00042405,120]
[398414096,1765622714202,-500.0,0.00042405,120]
[398414097,1765622714232,-250.0,0.00042405,120]
[398414098,1765622714262,-1000.0,0.00042405,120]
[398414099,1765622714289,-250.0,0.00042405,120]
[398414100,1765622714318,-1000.0,0.00042405,120]
[398414101,1765622714348,-500.0,0.00042405,120]
[398414102,1765622714378,-499.0,0.00042405,120]
[398414103,1765622714407,-500.0,0.00042405,120]
[398414104,1765622714437,-151.0,0.00042405,120]
[398414105,1765622714470,-499.0,0.00042405,120]
[398414106,1765622714501,-151.0,0.00042405,120]
[398414107,1765622714530,-500.0,0.00042405,120]
[398414108,1765622714559,-500.0,0.00042405,120]
[398414109,1765622714588,-499.0,0.00042405,120]
[398414110,1765622714618,-151.0,0.00042405,120]
[398414111,1765622714646,-500.0,0.00042405,120]
[398414112,1765622714674,-500.0,0.00042405,120]
[398414113,1765622714702,-151.0,0.00042405,120]
[398414114,1765622714731,-500.0,0.00042405,120]
[398414115,1765622714759,-499.0,0.00042405,120]
[398414116,1765622714788,-151.0,0.00042405,120]
[398414117,1765622714818,-500.0,0.00042405,120]
[398414118,1765622714846,-151.0,0.00042405,120]
[398414119,1765622714874,-500.0,0.00042405,120]
[398414120,1765622714903,-499.0,0.00042405,120]
[398414121,1765622714932,-156.587,0.00042405,120]
[398414122,1765622714962,-151.0,0.00042405,120]
[398414123,1765622715007,-500.0,0.00042405,120]
[398414124,1765622715040,-499.0,0.00042405,120]
[398414125,1765622715071,-500.0,0.00042405,120]
[398414126,1765622715100,-162.380719,0.00042405,120]
[398414127,1765622715130,-151.0,0.00042405,120]
[398414128,1765622715160,-499.0,0.00042405,120]
[398414129,1765622715190,-500.0,0.00042405,120]
[398414130,1765622715219,-500.0,0.00042405,120]
[398414131,1765622715250,-168.3888056,0.00042405,120]
[398414132,1765622715282,-499.0,0.00042405,120]
[398414133,1765622715312,-500.0,0.00042405,120]
[398414134,1765622715341,-500.0,0.00042405,120]
[398414135,1765622715369,-174.61919141,0.00042405,120]
[398414136,1765622715400,-499.0,0.00042405,120]
[398414137,1765622715429,-500.0,0.00042405,120]
[398414138,1765622715465,-181.08010149,0.00042405,120]
[398414139,1765622715499,-499.0,0.00042405,120]
[398414140,1765622715528,-500.0,0.00042405,120]
[398414141,1765622715559,-187.78006525,0.00042405,120]
[398414142,1765622715589,-500.0,0.00042405,120]
[398414143,1765622715621,-499.0,0.00042405,120]
[398414144,1765622715652,-194.72792766,0.00042405,120]
[398414145,1765622715685,-499.0,0.00042405,120]
[398414146,1765622715714,-194.72792766,0.00042405,120]
[398414147,1765622715746,-499.0,0.00042405,120]
[398414148,1765622715777,-499.0,0.00042405,120]
[398414149,1765622715811,-1000.0,0.00042405,120]
[398414150,1765622715843,-499.0,0.00042405,120]
[398414151,1765622715876,-1000.0,0.00042405,120]
[398414152,1765622715915,-1000.0,0.00042405,120]
[398414153,1765622715950,-499.0,0.00042405,120]
[398414154,1765622715984,-499.0,0.00042405,120]
[398414155,1765622716015,-1000.0,0.00042405,120]
[398414156,1765622716048,-1000.0,0.00042405,120]
[398414157,1765622716079,-414.0,0.00042405,120]
[398414158,1765622716110,-499.0,0.00042405,120]